[Event "Israel Youth-ch U18 2025"]
[Site "Rishon Le Zion"]
[Date "2025.04.06"]
[Round "2.1"]
[White "Tashkinova, Sofiia"]
[Black "Milikow, Elie"]
[Result "0-1"]
[Annotator "ChessBase"]
[ECO "B31"]
[WhiteElo "2088"]
[BlackElo "2390"]
[PlyCount "83"]
[EventDate "2025.04.03"]
[EventType "tourn"]
[EventCountry "ISR"]
[SourceTitle "playchess.com"]
[Source "ChessBase"]
[SourceQuality "1"]
[TimeControl "5400+30"]

1. e4 {[%emt 0:00:02]} c5 {[%emt 0:00:14]} 2. Nf3 {[%emt 0:00:10]} Nc6 {[%emt 0:00:25]} 3. Bb5 {[%emt 0:00:48]} g6 {[%emt 0:00:50]} 4. O-O {[%emt 0:00:38]} Bg7 {[%emt 0:00:51]} 5. c3 {[%emt 0:00:36]} a6 {[%emt 0:06:55]} 6. Bxc6 {[%emt 0:04:26]} dxc6 {[%emt 0:04:09]} 7. h3 {[%emt 0:06:06]} Nf6 {[%emt 0:05:11]} 8. Re1 {[%emt 0:02:05]} O-O {[%emt 0:11:14]} 9. d4 {[%emt 0:02:11]} cxd4 {[%emt 0:04:19]} 10. cxd4 {[%emt 0:00:56]} c5 {[%emt 0:02:31]} 11. e5 {[%emt 0:07:28]} Nd7 {[%emt 0:02:18]} 12. Be3 {[%emt 0:12:07]} cxd4 {[%emt 0:16:32]} 13. Bxd4 {[%emt 0:01:11]} Nb8 {[%emt 0:03:16]} 14. Nc3 {[%emt 0:10:34]} Nc6 {[%emt 0:03:02]} 15. Bc5 {[%emt 0:02:01]} Be6 {[%emt 0:09:35]} 16. Nd4 {[%emt 0:14:42]} Nxd4 {[%emt 0:05:37]} 17. Bxd4 {[%emt 0:01:51]} Rc8 {[%emt 0:03:22]} 18. Qd2 {[%emt 0:02:22]} Rc6 {[%emt 0:06:20]} 19. Qe3 {[%emt 0:02:28]} Qc7 {[%emt 0:02:21]} 20. Na4 {[%emt 0:02:29]} Qa5 {[%emt 0:08:45]} 21. b3 {[%emt 0:02:35]} Rfc8 {[%emt 0:01:06]} 22. Nb6 {[%emt 0:08:18]} Rd8 {[%emt 0:01:04]} 23. Na4 {[%emt 0:03:00]} Rd5 {[%emt 0:01:20]} 24. f4 {[%emt 0:03:30]} Rc2 {[%emt 0:00:38]} 25. Rac1 {[%emt 0:01:08]} Qc7 {[%emt 0:00:32]} 26. Nc3 {[%emt 0:01:13]} Rxc1 {[%emt 0:00:12]} 27. Rxc1 {[%emt 0:00:11]} Rd7 {[%emt 0:00:20]} 28. Ne4 {[%emt 0:02:23]} Qa5 {[%emt 0:00:54]} 29. Bb6 {[%emt 0:02:35]} Qxa2 {[%emt 0:00:21]} 30. f5 {[%emt 0:02:41]} Bxf5 {[%emt 0:00:38]} 31. Nf2 {[%emt 0:02:03]} Rd5 {[%emt 0:00:24]} 32. Bd4 {[%emt 0:00:45]} Qa5 {[%emt 0:00:35]} 33. g4 {[%emt 0:00:31]} Bd7 {[%emt 0:00:30]} 34. Nd3 {[%emt 0:00:15]} Bc6 {[%emt 0:00:21]} 35. Nf4 {[%emt 0:00:45]} Bxe5 {[%emt 0:00:43]} 36. Bxe5 {[%emt 0:00:54]} Rxe5 {[%emt 0:00:06]} 37. Qf2 {[%emt 0:00:27]} Re4 {[%emt 0:00:23]} 38. Rd1 {[%emt 0:00:22]} Qe5 {[%emt 0:00:31]} 39. Rd8+ {[%emt 0:00:38]} Kg7 {[%emt 0:00:09]} 40. Nd3 {[%emt 0:00:12]} Qa1+ {[%emt 0:00:44]} 41. Kh2 {[%emt 0:00:07]} g5 {[%emt 0:00:17]} 42. Qd2 {[%emt 0:01:46]} 0-1

[Event "Israel Youth-ch U18 2025"]
[Site "Rishon Le Zion"]
[Date "2025.04.06"]
[Round "2.2"]
[White "Brezis, Ari"]
[Black "Orian, Noga"]
[Result "1-0"]
[Annotator "ChessBase"]
[ECO "E12"]
[WhiteElo "2242"]
[BlackElo "2184"]
[PlyCount "105"]
[EventDate "2025.04.03"]
[EventType "tourn"]
[EventCountry "ISR"]
[SourceTitle "playchess.com"]
[Source "ChessBase"]
[SourceQuality "1"]
[TimeControl "5400+30"]

1. d4 {[%emt 0:00:05]} Nf6 {[%emt 0:00:08]} 2. c4 {[%emt 0:00:05]} e6 {[%emt 0:00:08]} 3. a3 {[%emt 0:02:03]} b6 {[%emt 0:00:30]} 4. Nc3 {[%emt 0:00:36]} Bb7 {[%emt 0:00:12]} 5. e3 {[%emt 0:00:29]} Be7 {[%emt 0:01:33]} 6. Nf3 {[%emt 0:01:01]} d5 {[%emt 0:00:38]} 7. cxd5 {[%emt 0:00:33]} Nxd5 {[%emt 0:00:14]} 8. Bb5+ {[%emt 0:02:41]} c6 {[%emt 0:00:09]} 9. Bd3 {[%emt 0:00:15]} Nxc3 {[%emt 0:00:17]} 10. bxc3 {[%emt 0:00:05]} Nd7 {[%emt 0:01:35]} 11. O-O {[%emt 0:01:59]} O-O {[%emt 0:00:20]} 12. e4 {[%emt 0:03:27]} c5 {[%emt 0:01:40]} 13. Re1 {[%emt 0:05:25]} Qc7 {[%emt 0:13:48]} 14. a4 {[%emt 0:13:48]} Rfd8 {[%emt 0:09:24]} 15. Ba3 {[%emt 0:03:16]} Nf6 {[%emt 0:03:11]} 16. Qd2 {[%emt 0:04:10]} Rac8 {[%emt 0:06:31]} 17. Rac1 {[%emt 0:04:07]} Bc6 {[%emt 0:13:47]} 18. Qc2 {[%emt 0:14:22]} h6 {[%emt 0:01:08]} 19. Ra1 {[%emt 0:11:25]} Qb7 {[%emt 0:10:19]} 20. Qb1 {[%emt 0:02:35]} Rc7 {[%emt 0:03:02]} 21. Bc1 {[%emt 0:00:26]} cxd4 {[%emt 0:02:44]} 22. cxd4 {[%emt 0:00:14]} Rcd7 {[%emt 0:00:43]} 23. Bb2 {[%emt 0:00:29]} Bb4 {[%emt 0:06:55]} 24. Re2 {[%emt 0:03:08]} Nh5 {[%emt 0:03:10]} 25. Qc1 {[%emt 0:01:34]} Bd6 {[%emt 0:02:47]} 26. g3 {[%emt 0:00:51]} Rc7 {[%emt 0:00:50]} 27. Qe3 {[%emt 0:02:05]} Rcc8 {[%emt 0:09:31]} 28. Nh4 {[%emt 0:02:28]} Be7 {[%emt 0:00:39]} 29. Nf3 {[%emt 0:02:07]} a6 {[%emt 0:02:20]} 30. Ne5 {[%emt 0:02:17]} Be8 {[%emt 0:00:06]} 31. Ng4 {[%emt 0:00:58]} Bg5 {[%emt 0:01:12]} 32. f4 {[%emt 0:00:14]} Be7 {[%emt 0:00:01]} 33. Rf1 {[%emt 0:01:52]} b5 {[%emt 0:00:30]} 34. a5 {[%emt 0:00:55]} b4 {[%emt 0:00:44]} 35. f5 {[%emt 0:00:22]} Bg5 {[%emt 0:02:11]} 36. Qf3 {[%emt 0:00:34]} exf5 {[%emt 0:01:32]} 37. Qxf5 {[%emt 0:00:16]} Qd7 {[%emt 0:02:28]} 38. Qf3 {[%emt 0:00:37]} Nf6 {[%emt 0:00:57]} 39. Nxf6+ {[%emt 0:00:29]} Bxf6 {[%emt 0:00:01]} 40. e5 {[%emt 0:00:11]} Be7 {[%emt 0:01:17]} 41. Ref2 {[%emt 0:05:12]} Qc6 {[%emt 0:01:05]} 42. Qf5 {[%emt 0:00:38]} g6 {[%emt 0:00:12]} 43. Qh3 {[%emt 0:00:20]} Bg5 {[%emt 0:00:36]} 44. g4 {[%emt 0:01:16]} Qd5 {[%emt 0:00:35]} 45. Qg3 {[%emt 0:00:24]} Rc3 {[%emt 0:00:34]} 46. Bxc3 {[%emt 0:01:17]} bxc3 {[%emt 0:00:01]} 47. h4 {[%emt 0:01:26]} Bd2 {[%emt 0:00:36]} 48. e6 {[%emt 0:00:48]} Qxd4 {[%emt 0:01:00]} 49. Bxg6 {[%emt 0:00:57]} fxg6 {[%emt 0:00:32]} 50. Qf3 {[%emt 0:00:01]} Bb5 {[%emt 0:00:33]} 51. e7 {[%emt 0:00:43]} Bxf1 {[%emt 0:00:32]} 52. Kxf1 {[%emt 0:01:13]} Re8 {[%emt 0:00:30]} 53. Qf7+ {[%emt 0:00:07]} 1-0

[Event "Israel Youth-ch U18 2025"]
[Site "Rishon Le Zion"]
[Date "2025.04.06"]
[Round "2.3"]
[White "Medovoy, Yaniv"]
[Black "Menahem, Adi"]
[Result "0-1"]
[Annotator "ChessBase"]
[ECO "B12"]
[WhiteElo "2129"]
[BlackElo "2170"]
[PlyCount "54"]
[EventDate "2025.04.03"]
[EventType "tourn"]
[EventCountry "ISR"]
[SourceTitle "playchess.com"]
[Source "ChessBase"]
[SourceQuality "1"]
[TimeControl "5400+30"]

1. e4 {[%emt 0:01:35]} c6 {[%emt 0:08:22]} 2. d4 {[%emt 0:00:18]} d5 {[%emt 0:00:10]} 3. e5 {[%emt 0:00:06]} Bf5 {[%emt 0:00:25]} 4. h4 {[%emt 0:00:06]} h5 {[%emt 0:00:19]} 5. Bd3 {[%emt 0:00:06]} Bxd3 {[%emt 0:00:07]} 6. Qxd3 {[%emt 0:00:05]} Qa5+ {[%emt 0:00:26]} 7. Nd2 {[%emt 0:00:19]} e6 {[%emt 0:00:32]} 8. Ne2 {[%emt 0:02:45]} Nh6 {[%emt 0:02:57]} 9. b3 {[%emt 0:06:59]} Nf5 {[%emt 0:02:48]} 10. Ng3 {[%emt 0:00:37]} g6 {[%emt 0:08:48]} 11. c4 {[%emt 0:05:50]} Be7 {[%emt 0:05:45]} 12. Nxf5 {[%emt 0:00:36]} gxf5 {[%emt 0:00:08]} 13. f4 {[%emt 0:11:09]} Na6 {[%emt 0:08:03]} 14. a3 {[%emt 0:02:32]} dxc4 {[%emt 0:02:19]} 15. bxc4 {[%emt 0:00:53]} O-O-O {[%emt 0:00:32]} 16. Rb1 {[%emt 0:36:32]} Rhg8 {[%emt 0:10:04]} 17. Kf1 {[%emt 0:08:49]} Qa4 {[%emt 0:23:53]} 18. Bb2 {[%emt 0:08:38]} Nc5 {[%emt 0:09:32]} 19. Qc3 {[%emt 0:01:09]} Ne4 {[%emt 0:00:35]} 20. Nxe4 {[%emt 0:00:20]} fxe4 {[%emt 0:00:02]} 21. Re1 {[%emt 0:02:59]} c5 {[%emt 0:01:26]} 22. Qe3 {[%emt 0:03:07]} Qc2 {[%emt 0:03:24]} 23. Qe2 {[%emt 0:00:56]} Qxe2+ {[%emt 0:00:49]} 24. Rxe2 {[%emt 0:00:05]} cxd4 {[%emt 0:00:07]} 25. Rxe4 {[%emt 0:00:55]} d3 {[%emt 0:00:31]} 26. Bd4 {[%emt 0:01:18]} Bxa3 {[%emt 0:03:01]} 27. Kf2 {[%emt 0:00:43]} Rxd4 {[%emt 0:00:28]} 0-1

[Event "Israel Youth-ch U18 2025"]
[Site "Rishon Le Zion"]
[Date "2025.04.06"]
[Round "2.4"]
[White "Pevzner, Maks"]
[Black "Uritsky, Yonathan"]
[Result "0-1"]
[Annotator "ChessBase"]
[ECO "E24"]
[WhiteElo "2167"]
[BlackElo "2301"]
[PlyCount "106"]
[EventDate "2025.04.03"]
[EventType "tourn"]
[EventCountry "ISR"]
[SourceTitle "playchess.com"]
[Source "ChessBase"]
[SourceQuality "1"]
[TimeControl "5400+30"]

1. d4 {[%emt 0:00:02]} Nf6 {[%emt 0:00:10]} 2. c4 {[%emt 0:00:05]} e6 {[%emt 0:00:08]} 3. Nc3 {[%emt 0:00:20]} Bb4 {[%emt 0:00:05]} 4. a3 {[%emt 0:00:24]} Bxc3+ {[%emt 0:00:06]} 5. bxc3 {[%emt 0:00:04]} c5 {[%emt 0:00:10]} 6. f3 {[%emt 0:01:09]} Nc6 {[%emt 0:00:05]} 7. e4 {[%emt 0:00:25]} d6 {[%emt 0:00:08]} 8. Ne2 {[%emt 0:02:24]} O-O {[%emt 0:02:14]} 9. Ng3 {[%emt 0:02:37]} b6 {[%emt 0:02:27]} 10. Be2 {[%emt 0:04:10]} Ba6 {[%emt 0:02:19]} 11. O-O {[%emt 0:01:17]} Na5 {[%emt 0:04:58]} 12. f4 {[%emt 0:00:57]} cxd4 {[%emt 0:15:37]} 13. cxd4 {[%emt 0:09:13]} Nxc4 {[%emt 0:05:43]} 14. f5 {[%emt 0:02:39]} h6 {[%emt 0:01:26]} 15. Bf4 {[%emt 0:11:36]} e5 {[%emt 0:02:43]} 16. dxe5 {[%emt 0:01:32]} dxe5 {[%emt 0:00:09]} 17. Bxe5 {[%emt 0:01:36]} Nxe5 {[%emt 0:01:08]} 18. Bxa6 {[%emt 0:00:06]} Qe7 {[%emt 0:00:24]} 19. Qd4 {[%emt 0:03:18]} Rad8 {[%emt 0:04:24]} 20. Qb4 {[%emt 0:01:53]} Qxb4 {[%emt 0:06:06]} 21. axb4 {[%emt 0:00:06]} Rd4 {[%emt 0:00:08]} 22. Rfb1 {[%emt 0:09:28]} Rfd8 {[%emt 0:16:59]} 23. Bb5 {[%emt 0:10:54]} Ra8 {[%emt 0:00:06]} 24. Ba6 {[%emt 0:01:35]} Rb8 {[%emt 0:01:10]} 25. Bf1 {[%emt 0:08:43]} Rb7 {[%emt 0:00:48]} 26. b5 {[%emt 0:01:12]} Nxe4 {[%emt 0:00:46]} 27. Nxe4 {[%emt 0:03:08]} Rxe4 {[%emt 0:00:04]} 28. Rd1 {[%emt 0:02:08]} Nd7 {[%emt 0:03:22]} 29. Ra2 {[%emt 0:05:31]} Re7 {[%emt 0:00:29]} 30. Rda1 {[%emt 0:02:20]} Nc5 {[%emt 0:00:42]} 31. Bc4 {[%emt 0:00:29]} Rbd7 {[%emt 0:00:37]} 32. h3 {[%emt 0:02:03]} Ne4 {[%emt 0:01:24]} 33. Re2 {[%emt 0:03:16]} Kf8 {[%emt 0:01:38]} 34. Rea2 {[%emt 0:04:23]} Nd2 {[%emt 0:04:50]} 35. Bf1 {[%emt 0:03:18]} Nb3 {[%emt 0:01:28]} 36. Rb1 {[%emt 0:00:15]} Nd4 {[%emt 0:00:51]} 37. g4 {[%emt 0:00:31]} h5 {[%emt 0:00:29]} 38. Kf2 {[%emt 0:02:33]} hxg4 {[%emt 0:02:13]} 39. hxg4 {[%emt 0:00:01]} Re4 {[%emt 0:00:27]} 40. Rd2 {[%emt 0:00:26]} Rxg4 {[%emt 0:02:12]} 41. Rbd1 {[%emt 0:00:08]} Rd5 {[%emt 0:00:36]} 42. Bd3 {[%emt 0:02:00]} Nb3 {[%emt 0:01:07]} 43. Re2 {[%emt 0:01:03]} Nc5 {[%emt 0:00:48]} 44. Bc2 {[%emt 0:00:41]} Rxd1 {[%emt 0:00:06]} 45. Bxd1 {[%emt 0:00:01]} Rf4+ {[%emt 0:00:17]} 46. Ke3 {[%emt 0:00:04]} Rxf5 {[%emt 0:00:32]} 47. Kd4 {[%emt 0:00:02]} Ne6+ {[%emt 0:00:15]} 48. Kc4 {[%emt 0:00:01]} Rc5+ {[%emt 0:00:29]} 49. Kb4 {[%emt 0:00:04]} Nc7 {[%emt 0:00:28]} 50. Ba4 {[%emt 0:00:10]} Nd5+ {[%emt 0:00:11]} 51. Kb3 {[%emt 0:00:02]} Nc3 {[%emt 0:00:12]} 52. Rd2 {[%emt 0:00:13]} Ke7 {[%emt 0:00:24]} 53. Kb4 {[%emt 0:00:10]} Nxa4 {[%emt 0:00:17]} 0-1

[Event "Israel Youth-ch U18 2025"]
[Site "Rishon Le Zion"]
[Date "2025.04.06"]
[Round "2.5"]
[White "Vagman, Roy"]
[Black "Meirovich, Ilay"]
[Result "1/2-1/2"]
[Annotator "ChessBase"]
[ECO "B46"]
[WhiteElo "2437"]
[BlackElo "2233"]
[PlyCount "273"]
[EventDate "2025.04.03"]
[EventType "tourn"]
[EventCountry "ISR"]
[SourceTitle "playchess.com"]
[Source "ChessBase"]
[SourceQuality "1"]
[TimeControl "5400+30"]

1. e4 {[%emt 0:00:15]} c5 {[%emt 0:00:05]} 2. Nf3 {[%emt 0:00:07]} e6 {[%emt 0:00:07]} 3. d4 {[%emt 0:00:05]} cxd4 {[%emt 0:00:04]} 4. Nxd4 {[%emt 0:00:04]} Nc6 {[%emt 0:00:07]} 5. Nc3 {[%emt 0:00:05]} a6 {[%emt 0:00:03]} 6. Nxc6 {[%emt 0:00:16]} bxc6 {[%emt 0:00:09]} 7. Bd3 {[%emt 0:00:06]} d5 {[%emt 0:00:11]} 8. O-O {[%emt 0:00:32]} Nf6 {[%emt 0:00:40]} 9. Qf3 {[%emt 0:00:11]} Be7 {[%emt 0:12:08]} 10. e5 {[%emt 0:00:12]} Nd7 {[%emt 0:00:13]} 11. Qg3 {[%emt 0:00:07]} g6 {[%emt 0:01:31]} 12. Bh6 {[%emt 0:05:52]} a5 {[%emt 0:23:53]} 13. b3 {[%emt 0:22:37]} Nc5 {[%emt 0:06:44]} 14. f4 {[%emt 0:08:18]} Ba6 {[%emt 0:12:54]} 15. Bxa6 {[%emt 0:06:25]} Rxa6 {[%emt 0:00:08]} 16. Qh3 {[%emt 0:03:14]} Rg8 {[%emt 0:01:17]} 17. Qf3 {[%emt 0:02:27]} Ra7 {[%emt 0:07:03]} 18. Kh1 {[%emt 0:02:39]} Rd7 {[%emt 0:03:34]} 19. g4 {[%emt 0:06:29]} f5 {[%emt 0:14:09]} 20. exf6 {[%emt 0:02:33]} Bxf6 {[%emt 0:00:08]} 21. Rae1 {[%emt 0:04:48]} Qe7 {[%emt 0:02:54]} 22. Re2 {[%emt 0:08:38]} Qd6 {[%emt 0:04:52]} 23. a3 {[%emt 0:08:05]} d4 {[%emt 0:04:11]} 24. b4 {[%emt 0:04:42]} axb4 {[%emt 0:02:46]} 25. axb4 {[%emt 0:00:08]} dxc3 {[%emt 0:00:29]} 26. bxc5 {[%emt 0:00:04]} Qd5 {[%emt 0:00:09]} 27. Qxd5 {[%emt 0:02:27]} cxd5 {[%emt 0:00:08]} 28. Rxe6+ {[%emt 0:04:02]} Kf7 {[%emt 0:00:06]} 29. Ra6 {[%emt 0:01:50]} Rc8 {[%emt 0:01:41]} 30. g5 {[%emt 0:01:45]} Be7 {[%emt 0:01:27]} 31. f5 {[%emt 0:00:49]} gxf5 {[%emt 0:00:57]} 32. Rxf5+ {[%emt 0:00:07]} Kg8 {[%emt 0:00:22]} 33. c6 {[%emt 0:03:01]} Rdc7 {[%emt 0:00:08]} 34. Rxd5 {[%emt 0:01:41]} Rxc6 {[%emt 0:00:07]} 35. Ra1 {[%emt 0:00:58]} Re6 {[%emt 0:01:06]} 36. Rd7 {[%emt 0:01:33]} Kf7 {[%emt 0:00:25]} 37. Rf1+ {[%emt 0:00:45]} Kg6 {[%emt 0:00:08]} 38. Kg2 {[%emt 0:00:52]} Rc4 {[%emt 0:00:38]} 39. Rf3 {[%emt 0:00:25]} Re2+ {[%emt 0:01:39]} 40. Kg3 {[%emt 0:00:31]} Ree4 {[%emt 0:00:35]} 41. h3 {[%emt 0:00:19]} Rc6 {[%emt 0:00:22]} 42. Rfd3 {[%emt 0:00:41]} Rcc4 {[%emt 0:00:33]} 43. Rb7 {[%emt 0:00:34]} Kf7 {[%emt 0:00:28]} 44. Rf3+ {[%emt 0:00:32]} Ke6 {[%emt 0:00:12]} 45. Bf8 {[%emt 0:00:35]} Bxg5 {[%emt 0:00:29]} 46. Rb6+ {[%emt 0:00:10]} Kd7 {[%emt 0:00:29]} 47. Ba3 {[%emt 0:00:37]} Bh4+ {[%emt 0:00:20]} 48. Kg2 {[%emt 0:00:01]} Re2+ {[%emt 0:00:12]} 49. Kf1 {[%emt 0:00:16]} Re1+ {[%emt 0:00:07]} 50. Kg2 {[%emt 0:00:01]} Re2+ {[%emt 0:00:05]} 51. Kg1 {[%emt 0:00:54]} Re1+ {[%emt 0:00:04]} 52. Rf1 {[%emt 0:00:37]} Rxf1+ {[%emt 0:00:08]} 53. Kxf1 {[%emt 0:00:01]} Rf4+ {[%emt 0:00:09]} 54. Ke2 {[%emt 0:00:20]} Rf2+ {[%emt 0:00:04]} 55. Kd3 {[%emt 0:00:29]} Rf3+ {[%emt 0:00:06]} 56. Ke4 {[%emt 0:01:13]} Rxh3 {[%emt 0:01:35]} 57. Rb7+ {[%emt 0:00:55]} Ke6 {[%emt 0:00:56]} 58. Rxh7 {[%emt 0:00:12]} Rh1 {[%emt 0:00:50]} 59. Kd3 {[%emt 0:00:48]} Rd1+ {[%emt 0:01:57]} 60. Kxc3 {[%emt 0:00:25]} Bf6+ {[%emt 0:00:13]} 61. Kc4 {[%emt 0:00:34]} Be5 {[%emt 0:01:02]} 62. Re7+ {[%emt 0:00:44]} Kf5 {[%emt 0:00:12]} 63. Re8 {[%emt 0:00:18]} Rd4+ {[%emt 0:00:49]} 64. Kb5 {[%emt 0:00:36]} Rd5+ {[%emt 0:00:25]} 65. Kc6 {[%emt 0:00:37]} Ra5 {[%emt 0:00:23]} 66. Bb4 {[%emt 0:00:12]} Ra4 {[%emt 0:00:44]} 67. Kd5 {[%emt 0:01:00]} Bg3 {[%emt 0:00:25]} 68. c3 {[%emt 0:00:22]} Ra7 {[%emt 0:00:43]} 69. Rf8+ {[%emt 0:00:13]} Kg4 {[%emt 0:00:09]} 70. c4 {[%emt 0:00:51]} Rd7+ {[%emt 0:00:15]} 71. Ke4 {[%emt 0:00:21]} Rg7 {[%emt 0:00:55]} 72. c5 {[%emt 0:00:35]} Re7+ {[%emt 0:00:32]} 73. Kd5 {[%emt 0:00:01]} Rd7+ {[%emt 0:00:18]} 74. Kc6 {[%emt 0:00:23]} Rc7+ {[%emt 0:00:05]} 75. Kb6 {[%emt 0:00:21]} Re7 {[%emt 0:01:06]} 76. c6 {[%emt 0:00:47]} Bc7+ {[%emt 0:00:30]} 77. Ka6 {[%emt 0:00:18]} Re4 {[%emt 0:00:26]} 78. Kb7 {[%emt 0:00:25]} Bh2 {[%emt 0:00:10]} 79. Bc5 {[%emt 0:00:25]} Rc4 {[%emt 0:00:43]} 80. Bb6 {[%emt 0:00:30]} Rb4 {[%emt 0:00:31]} 81. c7 {[%emt 0:01:11]} Bxc7 {[%emt 0:00:08]} 82. Kxc7 {[%emt 0:00:03]} Rf4 {[%emt 0:00:27]} 83. Rg8+ {[%emt 0:00:05]} Kf3 {[%emt 0:00:09]} 84. Bc5 {[%emt 0:00:09]} Rf7+ {[%emt 0:00:10]} 85. Kc6 {[%emt 0:00:04]} Rf5 {[%emt 0:00:06]} 86. Rg1 {[%emt 0:00:53]} Ke4 {[%emt 0:00:24]} 87. Re1+ {[%emt 0:00:40]} Kd3 {[%emt 0:00:15]} 88. Kb5 {[%emt 0:00:21]} Rh5 {[%emt 0:00:27]} 89. Re3+ {[%emt 0:00:05]} Kd2 {[%emt 0:00:08]} 90. Rg3 {[%emt 0:00:04]} Rh4 {[%emt 0:00:53]} 91. Be3+ {[%emt 0:00:34]} Ke2 {[%emt 0:00:11]} 92. Kc5 {[%emt 0:00:03]} Re4 {[%emt 0:00:13]} 93. Bd4 {[%emt 0:00:11]} Re8 {[%emt 0:00:39]} 94. Kd5 {[%emt 0:00:24]} Re7 {[%emt 0:01:15]} 95. Rg2+ {[%emt 0:00:32]} Kf3 {[%emt 0:00:15]} 96. Rf2+ {[%emt 0:00:01]} Kg4 {[%emt 0:00:19]} 97. Be5 {[%emt 0:00:07]} Re8 {[%emt 0:00:53]} 98. Ke4 {[%emt 0:00:04]} Ra8 {[%emt 0:00:31]} 99. Rg2+ {[%emt 0:00:37]} Kh3 {[%emt 0:00:31]} 100. Rg7 {[%emt 0:01:48]} Ra4+ {[%emt 0:00:20]} 101. Kf5 {[%emt 0:00:25]} Ra5 {[%emt 0:00:41]} 102. Rg3+ {[%emt 0:00:32]} Kh4 {[%emt 0:00:06]} 103. Rg2 {[%emt 0:01:27]} Ra3 {[%emt 0:00:31]} 104. Rb2 {[%emt 0:01:29]} Rd3 {[%emt 0:01:34]} 105. Bf4 {[%emt 0:01:02]} Rd5+ {[%emt 0:01:10]} 106. Be5 {[%emt 0:00:03]} Rd3 {[%emt 0:00:08]} 107. Ra2 {[%emt 0:00:33]} Rb3 {[%emt 0:00:27]} 108. Rh2+ {[%emt 0:00:52]} Rh3 {[%emt 0:00:05]} 109. Rd2 {[%emt 0:00:22]} Rb3 {[%emt 0:00:21]} 110. Bd6 {[%emt 0:00:06]} Rb5+ {[%emt 0:00:49]} 111. Be5 {[%emt 0:00:01]} Rb3 {[%emt 0:00:09]} 112. Kf4 {[%emt 0:01:27]} Kh5 {[%emt 0:01:04]} 113. Rg2 {[%emt 0:00:25]} Kh6 {[%emt 0:01:07]} 114. Rg7 {[%emt 0:00:47]} Rb1 {[%emt 0:00:27]} 115. Ra7 {[%emt 0:00:41]} Rf1+ {[%emt 0:00:17]} 116. Ke4 {[%emt 0:00:45]} Kg6 {[%emt 0:00:12]} 117. Rg7+ {[%emt 0:00:09]} Kh6 {[%emt 0:00:14]} 118. Rg2 {[%emt 0:00:07]} Kh7 {[%emt 0:00:31]} 119. Bf4 {[%emt 0:00:14]} Re1+ {[%emt 0:00:50]} 120. Kf5 {[%emt 0:00:01]} Rf1 {[%emt 0:00:19]} 121. Rg4 {[%emt 0:00:36]} Rb1 {[%emt 0:00:45]} 122. Rh4+ {[%emt 0:01:18]} Kg8 {[%emt 0:00:49]} 123. Be5 {[%emt 0:00:52]} Rb6 {[%emt 0:00:48]} 124. Bf6 {[%emt 0:00:26]} Kf7 {[%emt 0:00:16]} 125. Rh7+ {[%emt 0:00:01]} Ke8 {[%emt 0:00:43]} 126. Re7+ {[%emt 0:00:03]} Kf8 {[%emt 0:00:09]} 127. Kg6 {[%emt 0:00:15]} Rb1 {[%emt 0:00:36]} 128. Rd7 {[%emt 0:01:12]} Re1 {[%emt 0:00:30]} 129. Rd8+ {[%emt 0:01:05]} Re8 {[%emt 0:00:05]} 130. Rd1 {[%emt 0:00:01]} Re2 {[%emt 0:00:43]} 131. Rd7 {[%emt 0:01:09]} Rg2+ {[%emt 0:00:38]} 132. Bg5 {[%emt 0:00:29]} Re2 {[%emt 0:00:06]} 133. Rd4 {[%emt 0:00:36]} Re1 {[%emt 0:00:23]} 134. Kf6 {[%emt 0:00:25]} Rf1+ {[%emt 0:00:18]} 135. Bf4 {[%emt 0:00:07]} Kg8 {[%emt 0:00:23]} 136. Kg6 {[%emt 0:00:42]} Kf8 {[%emt 0:00:20]} 137. Re4 {[%emt 0:00:01]} 1/2-1/2